bitfinex/quotes_ETHUSD_20220309
["timestamp","ask_amount","ask_price","bid_price","bid_amount"]
[1646831953633,0.00355358,2737.7,2737.5,4.12869176]
[1646831953890,0.00355358,2737.7,2737.5,4.57369176]
[1646831954386,0.04035806,2738.0,2737.6,3.521083]
[1646831954582,0.04035806,2738.0,2737.8,0.021139]
[1646831954789,0.04035806,2738.0,2737.9,1.82568]
[1646831955183,0.04035806,2738.0,2737.9,2.27068]
[1646831956587,0.04035806,2738.0,2737.9,3.24567319]
[1646831958027,0.04035806,2738.0,2737.9,6.94567319]
[1646831958826,0.04035806,2738.0,2737.9,5.11999319]
[1646831961293,0.04035806,2738.0,2737.9,10.34995319]
[1646831961492,7.2899364,2739.1,2738.0,5.0]
[1646831961493,0.91276,2738.5,2738.0,5.0]
[1646831961683,9.55636517,2739.1,2738.3,0.021173]
[1646831961883,9.55528651,2739.1,2738.6,0.91219726]
[1646831962084,6.41388651,2739.1,2738.6,0.91219726]
[1646831962284,0.6739263,2738.5,2738.4,0.445]
[1646831962683,0.00107866,2739.1,2738.5,3.5]
[1646831962983,1.2058,2739.4,2738.6,0.445]
[1646831963184,0.00502835,2739.2,2738.6,0.445]
[1646831963387,0.00502835,2739.2,2738.9,1.05756291]
[1646831963584,0.00502835,2739.2,2738.8,0.445]
[1646831963784,0.00502835,2739.2,2739.0,0.9125]
[1646831963985,0.91254,2739.1,2739.0,0.9125]
[1646831964384,0.91379735,2739.1,2739.0,0.9125]
[1646831965029,0.00125735,2739.1,2739.0,0.9125]
[1646831965329,1.82503,2739.4,2739.0,0.9125]
[1646831965530,0.00125735,2739.2,2739.0,0.9125]
[1646831965729,0.00125735,2739.2,2739.1,0.95556294]
[1646831966335,1.82503,2739.4,2739.1,0.95556294]
[1646831966736,0.00380412,2739.3,2739.1,0.95556294]
[1646831967036,0.00380412,2739.3,2739.1,0.95160468]
[1646831967635,1.82503,2739.4,2739.0,0.9125]
[1646831968036,0.00380408,2739.3,2739.0,0.9125]
[1646831968785,0.00380408,2739.3,2739.1,1.85435891]
[1646831968977,0.91244,2739.5,2739.1,2.76675891]
[1646831969175,0.00380412,2739.3,2739.1,2.76675891]
[1646831969375,0.00380412,2739.3,2739.1,3.76675891]
[1646831969784,0.00380412,2739.3,2739.1,6.50368891]
[1646831969976,0.03621522,2739.7,2739.3,0.91224]
[1646831970177,0.91232,2739.8,2739.3,2.37554]
[1646831970380,10.0,2740.0,2739.4,1.28241]
[1646831970381,0.01521403,2739.7,2739.4,1.28241]
[1646831970581,0.01521403,2739.7,2739.5,2.26945]
[1646831970777,0.01521403,2739.7,2739.5,9.56995]
[1646831971177,0.01521403,2739.7,2739.6,1.95792866]
[1646831971384,10.0,2740.0,2739.7,6.0]
[1646831971586,10.0,2740.0,2739.8,1.35706]
[1646831971785,10.0,2740.0,2739.8,3.18113]
[1646831972084,10.0,2740.0,2739.9,7.2995]
[1646831972284,10.0,2740.0,2739.9,7.7445]
[1646831972530,10.0,2740.0,2739.9,9.65654]
[1646831973734,10.0,2740.0,2739.9,8.65654]
[1646831973930,10.0,2740.0,2739.9,7.7445]
[1646831975836,10.3,2740.0,2739.9,7.2995]
[1646831976684,6.5,2739.9,2739.3,1.82478]
[1646831976884,0.3656,2739.7,2739.1,1.82492]
[1646831977483,2.4250628,2739.8,2739.1,1.82492]
[1646831977683,1.51634856,2739.8,2739.1,1.82492]
[1646831978484,1.51253,2739.8,2739.1,1.82492]
[1646831978684,0.91253,2739.8,2739.5,1.04790019]
[1646831978889,0.91634858,2739.8,2739.6,0.91234]
[1646831979685,0.91253,2739.8,2739.5,1.82467]
[1646831980129,0.91621982,2739.8,2739.5,1.82467]
[1646831980329,1.21621982,2739.8,2739.5,1.82467]
[1646831980528,0.91621982,2739.8,2739.5,1.82467]
[1646831980729,0.91621982,2739.8,2739.5,4.82467]
[1646831980929,1.21253,2739.8,2739.5,5.83811325]
[1646831981334,1.21621979,2739.8,2739.5,5.83811325]
[1646831982133,0.91621979,2739.8,2739.5,5.83811325]
[1646831982334,0.91253,2739.8,2739.6,0.445]
[1646831982533,0.91621979,2739.8,2739.6,4.165]
[1646831983133,0.91621979,2739.8,2739.6,6.165]
[1646831983333,0.91253,2739.8,2739.6,6.165]
[1646831983533,1.21253,2739.8,2739.6,5.0]
[1646831983790,1.21609225,2739.8,2739.6,5.0]
[1646831984579,1.21253,2739.8,2739.6,5.0]
[1646831984779,1.21253,2739.8,2739.6,6.04379913]
[1646831984979,1.21609225,2739.8,2739.6,6.04379913]
[1646831985379,1.21609225,2739.8,2739.6,6.95612913]
[1646831985582,1.21609225,2739.8,2739.6,5.91233]
[1646831985781,1.21253,2739.8,2739.6,5.0]
[1646831986181,1.21609225,2739.8,2739.6,5.0]
[1646831986385,1.21609225,2739.8,2739.6,5.91233]
[1646831986991,1.21253,2739.8,2739.6,5.91233]
[1646831987188,1.21610086,2739.8,2739.6,6.35733]
[1646831987387,1.21610086,2739.8,2739.7,1.06957321]
[1646831988332,1.21253,2739.8,2739.7,1.06957321]
[1646831988833,1.21253,2739.8,2739.7,1.51457321]
[1646831989037,1.21253,2739.8,2739.7,0.445]
[1646831989437,1.21253,2739.8,2739.6,5.0]
[1646831991040,1.21626846,2739.8,2739.6,5.0]
[1646831991886,1.21253,2739.8,2739.6,5.0]
[1646831992093,1.21626846,2739.8,2739.6,5.0]
[1646831993088,1.21253,2739.8,2739.6,5.0]
[1646831993291,1.21626846,2739.8,2739.6,5.0]
[1646831994292,1.21253,2739.8,2739.6,5.0]
[1646831994599,1.21626846,2739.8,2739.6,5.0]
[1646831995533,1.21253,2739.8,2739.6,5.0]
[1646831995736,1.21595524,2739.8,2739.6,5.0]
[1646831996735,1.21253,2739.8,2739.6,5.0]
[1646831996935,1.21492862,2739.8,2739.6,5.0]
[1646831997936,1.21150338,2739.8,2739.6,5.0]
[1646831998136,1.21492862,2739.8,2739.6,5.0]
[1646831999002,1.21150338,2739.8,2739.6,5.0]
[1646831999404,1.21487749,2739.8,2739.6,5.0]
[1646832000207,1.21150338,2739.8,2739.6,5.0]
[1646832000607,1.21487749,2739.8,2739.6,5.0]
[1646832000809,5.58,2740.0,2739.7,10.0]
[1646832001009,5.58,2740.0,2739.8,0.933335]
[1646832001210,5.58,2740.0,2739.9,0.445]
[1646832002414,5.58,2740.0,2739.8,3.0]
[1646832002834,0.91228,2741.3,2740.1,1.093]
[1646832003039,3.6491157,2741.6,2740.3,4.0929]
[1646832003040,0.01355172,2740.6,2740.3,4.0929]
[1646832003233,3.11438713,2741.6,2740.8,0.940848]
[1646832003433,0.0241392,2741.7,2741.3,1.093]
[1646832004033,0.9360264,2741.7,2741.3,2.91635]
[1646832004439,0.0241392,2741.7,2741.3,2.91635]
[1646832005640,0.3241392,2741.7,2741.3,2.91635]
[1646832006040,0.0241392,2741.7,2741.3,2.91635]
[1646832006493,0.0241392,2741.7,2741.3,3.36135]
[1646832006693,0.00382267,2741.6,2741.3,3.36135]
[1646832007393,0.00382267,2741.6,2741.5,2.91645]
[1646832007598,0.0241392,2741.7,2741.5,2.91645]
[1646832007793,0.00382272,2741.6,2741.5,3.36145]
[1646832008793,0.0241392,2741.7,2741.5,3.36145]
[1646832008993,0.02796182,2741.7,2741.5,3.36145]
[1646832010040,0.0241392,2741.7,2741.5,7.06145]
[1646832010245,0.0278471,2741.7,2741.5,7.06145]
[1646832010846,0.3,2742.0,2741.8,1.093]
[1646832011045,0.04310601,2742.1,2741.8,2.00448]
[1646832011246,0.04310601,2742.1,2742.0,1.093]
[1646832011247,0.27827664,2742.1,2742.0,1.093]
[1646832011447,0.27827664,2742.1,2741.9,1.11017338]
[1646832011448,0.02827664,2742.1,2741.9,0.59805343]
[1646832011847,0.02827664,2742.1,2742.0,0.445]
[1646832012448,0.02905372,2742.4,2742.1,7.41128]
[1646832012646,0.02905372,2742.4,2742.3,1.82244]
[1646832012852,0.04035548,2742.6,2742.4,4.43962453]
[1646832013049,0.05440356,2742.6,2742.5,0.445]
[1646832014895,0.05440356,2742.6,2742.5,10.1236438]
[1646832016295,0.05440356,2742.6,2742.5,11.18952614]
[1646832016598,0.05440356,2742.6,2742.5,12.10073614]
[1646832017094,0.05440356,2742.6,2742.5,14.0348538]
[1646832018149,0.05440356,2742.6,2742.5,15.05916186]
[1646832018745,0.05440356,2742.6,2742.5,14.0348538]
[1646832018944,0.05440356,2742.6,2742.5,15.0348538]
[1646832019747,0.05440356,2742.6,2742.5,15.92476038]
[1646832019947,0.05440356,2742.6,2742.5,19.62476038]
[1646832020249,0.00122569,2742.7,2742.6,6.5]
[1646832020451,1.83599392,2743.3,2742.7,6.5]
[1646832020452,0.01354392,2743.3,2742.7,6.5]
[1646832020652,0.01354392,2743.3,2742.8,20.5897138]
[1646832020653,0.03545808,2743.0,2742.8,20.5897138]
[1646832020847,0.01244728,2743.3,2743.0,7.67135751]
[1646832021047,0.01244728,2743.3,2743.1,10.00661275]
[1646832021305,0.01244728,2743.3,2743.2,9.5686438]
[1646832021501,0.07320876,2743.4,2743.3,5.0]
[1646832021703,0.02027168,2743.4,2743.3,15.82017023]
[1646832021900,0.06543792,2743.5,2743.3,10.82017023]
[1646832022103,0.06543792,2743.5,2743.4,9.16864684]
[1646832022104,0.0312976,2743.5,2743.4,9.16864684]
[1646832022302,1.83385508,2744.0,2743.5,1.1408953]
[1646832022503,1.83385508,2744.0,2743.6,7.86647351]
[1646832022703,2.74483378,2744.0,2743.7,7.42147351]
[1646832022903,2.74483378,2744.0,2743.8,0.445]
[1646832023306,0.30769416,2743.9,2743.8,0.445]
[1646832023707,0.30769416,2743.9,2743.8,7.86647351]
[1646832024104,0.00769416,2743.9,2743.8,7.86647351]
[1646832024303,0.0064694,2743.9,2743.8,7.86647351]
[1646832025344,0.3064694,2743.9,2743.8,7.86647351]
[1646832028460,0.3064694,2743.9,2743.5,1.82196]
[1646832028654,0.3064694,2743.9,2743.6,0.445]
[1646832028922,1.2173994,2743.9,2743.7,0.91096]
[1646832029109,1.5173994,2743.9,2743.8,0.445]
[1646832029514,0.61016702,2743.9,2743.8,0.445]
[1646832029714,0.31016702,2743.9,2743.8,0.445]
[1646832030516,0.3064694,2743.9,2743.8,0.445]
[1646832031119,0.3064694,2743.9,2743.8,4.145]
[1646832031518,0.3064694,2743.9,2743.8,2.54069825]
[1646832031721,0.3064694,2743.9,2743.8,2.98569825]
[1646832032740,0.3064694,2743.9,2743.8,2.54069825]
[1646832033139,0.3064694,2743.9,2743.5,0.07303825]
[1646832033339,2.1287962,2743.9,2743.2,3.82233]
[1646832033541,2.73377,2743.8,2743.5,0.9587259]
[1646832033744,0.9111549,2743.7,2743.5,0.9587259]
[1646832034141,1.2767549,2743.7,2743.3,0.9112]
[1646832034341,0.9111549,2743.7,2743.2,2.0]
[1646832035141,0.9111549,2743.7,2743.4,1.02305384]
[1646832035341,2.1879649,2743.7,2743.4,1.02305384]
[1646832035542,0.00356981,2743.6,2743.4,1.02305384]
[1646832035742,0.30356981,2743.6,2743.4,1.02305384]
[1646832036402,0.3,2743.6,2743.4,1.02305384]
[1646832036598,0.30357998,2743.6,2743.4,1.02305384]
[1646832037099,0.30357998,2743.6,2743.3,0.91122]
[1646832037498,0.3,2743.6,2743.3,0.91122]
[1646832037899,0.30358002,2743.6,2743.3,0.91122]
[1646832038100,0.30358002,2743.6,2743.3,2.00406467]
[1646832038699,0.30358002,2743.6,2743.4,0.445]
[1646832038902,0.3,2743.6,2743.4,0.445]
[1646832039101,0.30358002,2743.6,2743.4,0.445]
[1646832039299,0.00358002,2743.6,2743.5,1.82202]
[1646832039499,0.00358002,2743.6,2743.5,2.294638]
[1646832040144,1.8223649,2743.7,2743.5,2.294638]
[1646832040343,1.82593965,2743.7,2743.5,2.294638]
[1646832040749,1.82593965,2743.7,2743.5,5.994638]
[1646832041250,1.8223649,2743.7,2743.5,5.994638]
[1646832041456,1.82593961,2743.7,2743.5,5.994638]
[1646832042451,1.8223649,2743.7,2743.5,5.994638]
[1646832042652,0.3,2743.6,2743.5,5.994638]
[1646832047940,0.3,2743.6,2743.5,6.994638]
[1646832048145,0.3,2743.6,2743.5,6.96702]
[1646832048343,0.3,2743.6,2743.5,4.17026]
[1646832049549,0.3,2743.6,2743.5,4.145]
[1646832049749,0.3,2743.6,2743.2,0.024501]
[1646832049950,0.3,2743.6,2743.1,3.82234]
[1646832050149,1.8225576,2743.5,2743.1,3.82234]
[1646832050353,0.91125,2743.3,2743.1,3.82234]
[1646832050549,0.2449985,2743.5,2743.1,3.82234]
[1646832050751,0.3,2743.6,2743.3,0.97776576]
[1646832051397,1.8225587,2743.4,2743.3,0.97776576]
[1646832051598,3.6450587,2743.4,2743.3,0.97776576]
[1646832052299,3.9450587,2743.4,2743.3,0.97776576]
[1646832054099,3.9450587,2743.4,2743.2,0.91116]
[1646832055967,3.94863399,2743.4,2743.2,0.91116]
[1646832056766,3.9450587,2743.4,2743.2,0.91116]
[1646832057167,3.94863399,2743.4,2743.2,0.91116]
[1646832057670,3.64863399,2743.4,2743.2,0.937508]
[1646832058068,3.6450587,2743.4,2743.2,0.937508]
[1646832058268,3.64863399,2743.4,2743.2,1.87199659]
[1646832058471,1.82613399,2743.4,2743.2,1.87199659]
[1646832059295,1.8225587,2743.4,2743.2,1.87199659]
[1646832059504,2.12613399,2743.4,2743.2,0.91116]
[1646832059700,2.12613399,2743.4,2743.2,0.90524454]
[1646832060098,2.12613399,2743.4,2743.2,0.93185254]
[1646832060299,0.00357529,2743.4,2743.2,0.93185254]
[1646832060501,2.1224885,2743.5,2743.2,0.93185254]
[1646832060699,0.00357529,2743.4,2743.3,1.16101255]
[1646832061599,2.1224885,2743.5,2743.3,1.16101255]
[1646832061799,2.12606375,2743.5,2743.3,1.16101255]
[1646832062400,0.30357525,2743.5,2743.4,0.029168]
[1646832062848,1.8221775,2743.8,2743.4,0.029168]
[1646832063046,0.00357516,2743.6,2743.5,0.91103]
[1646832064049,1.8221775,2743.8,2743.5,0.91103]
[1646832064250,0.00357508,2743.7,2743.5,0.91103]
[1646832065253,1.8221775,2743.8,2743.5,0.91103]
[1646832065452,0.00357503,2743.7,2743.5,0.91103]
[1646832066056,1.82584503,2743.7,2743.3,3.7]
[1646832066331,1.82584503,2743.7,2743.2,0.89233734]
[1646832066332,5.3656,2743.6,2743.2,0.89233734]
[1646832066528,0.3656,2743.4,2742.9,0.0728]
[1646832066828,1.86976065,2743.3,2742.9,0.0728]
[1646832067030,0.3656,2743.3,2742.9,0.0728]
[1646832067428,1.50426347,2743.2,2742.9,0.0728]
[1646832068127,1.50783893,2743.2,2742.9,0.0728]
[1646832068331,1.87343893,2743.2,2742.7,0.646036]
[1646832068532,1.86986347,2743.1,2742.7,0.146036]
[1646832068728,2.48863,2743.1,2742.6,9.2924]
[1646832069329,0.91151,2743.0,2742.6,9.2924]
[1646832069532,15.42711,2743.0,2742.6,7.2924]
[1646832069735,1.50446497,2742.9,2742.6,7.2924]
[1646832069930,12.65446497,2742.9,2742.6,7.2924]
[1646832070150,11.15,2742.8,2742.6,7.2924]
[1646832070354,13.88503,2742.8,2742.6,7.2924]
[1646832070552,15.36980429,2742.8,2742.6,7.2924]
[1646832070751,1.50458011,2742.7,2742.6,7.2924]
[1646832071156,1.50458011,2742.7,2742.4,0.0728]
[1646832071157,6.5,2742.6,2742.4,0.0728]
[1646832071356,6.5,2742.6,2742.0,2.0]
[1646832071357,4.70605893,2742.5,2742.0,2.0]
[1646832071555,7.70605893,2742.5,2742.0,2.0]
[1646832071756,8.70605893,2742.5,2742.0,2.0]
[1646832071956,8.70605893,2742.5,2741.6,3.35588442]
[1646832072159,19.85605893,2742.5,2742.0,3.7]
[1646832072365,18.83946,2742.2,2741.7,0.81541956]
[1646832072557,12.5133592,2742.2,2741.6,0.5]
[1646832072758,5.0133592,2742.2,2741.5,0.024501]
[1646832072960,5.3133592,2742.2,2741.5,0.024501]
[1646832073156,5.3133592,2742.2,2741.3,2.89233734]
[1646832073358,1.27753,2742.1,2741.5,0.029168]
[1646832073559,3.0,2741.6,2741.2,2.85646942]
[1646832073804,3.0,2741.6,2740.5,2.39308837]
[1646832073805,19.4746211,2741.5,2740.7,0.89233734]
[1646832074006,11.15,2741.3,2740.4,0.89233734]
[1646832074206,11.15,2741.1,2740.3,0.89233734]
[1646832074407,3.5,2741.0,2740.2,0.89233734]
[1646832074608,0.3656,2740.9,2740.3,1.1118612]
[1646832074807,3.1027383,2740.9,2740.3,1.1118612]
[1646832075011,6.6027383,2740.9,2740.3,1.1118612]
[1646832075206,7.6027383,2740.9,2740.3,1.1118612]
[1646832075408,3.7371383,2740.9,2740.3,1.1118612]
[1646832075609,2.7371383,2740.9,2740.5,0.029168]
[1646832076008,2.7371383,2740.9,2740.3,1.1118612]
[1646832076411,6.2371383,2740.9,2740.6,0.00382639]
[1646832077312,7.2371383,2740.9,2740.3,1.1118612]
[1646832077575,1.82466,2740.8,2740.6,0.0038264]
[1646832077760,3.5,2740.7,2740.6,0.0038264]
[1646832078361,6.8656,2740.6,2739.7,0.91683834]
[1646832078561,3.5,2740.7,2739.5,0.89233734]
[1646832078562,14.2536814,2740.2,2739.5,0.89233734]
[1646832078760,14.2536814,2740.2,2739.3,0.89233734]
[1646832078761,0.3656,2740.0,2739.3,0.89233734]
[1646832078959,3.5,2740.1,2739.3,0.89233734]
[1646832078960,0.3656,2739.9,2739.3,0.89233734]
[1646832079160,3.8656,2739.9,2739.2,0.91683834]
[1646832079360,3.8656,2739.9,2739.4,1.14785002]
[1646832079560,4.8656,2739.9,2739.4,1.14785002]
[1646832079759,17.8409723,2739.9,2739.4,1.14785002]
[1646832079962,18.6100723,2739.9,2739.4,1.14785002]
[1646832080362,18.6100723,2739.9,2739.3,0.024501]
[1646832080564,17.6973623,2739.9,2739.0,0.024501]
[1646832080771,0.3656,2739.6,2738.7,5.23745622]
[1646832081063,0.9127702,2739.4,2738.7,5.23745622]
[1646832082210,0.9127702,2739.4,2738.7,8.93809322]
[1646832082211,5.16864,2739.3,2738.7,8.93809322]
[1646832082409,5.16864,2739.3,2738.9,0.00356475]
[1646832082410,8.2730467,2739.3,2738.9,0.00356475]
[1646832082609,8.2730467,2739.3,2738.7,6.7]
[1646832082610,9.8500467,2739.3,2738.7,6.7]
[1646832082812,9.8500467,2739.3,2738.7,6.724501]
[1646832083210,21.16874007,2739.3,2738.7,6.7]
[1646832083411,10.01874007,2739.3,2738.7,6.7]
[1646832083611,9.68944007,2739.3,2738.7,6.7]
[1646832083810,2.7388512,2739.2,2738.7,6.7]
[1646832084213,2.7388512,2739.2,2738.7,6.724608]
[1646832084412,2.7388512,2739.2,2739.0,1.20620587]
[1646832084616,2.7388512,2739.2,2739.1,0.029168]
[1646832084813,0.9127702,2739.4,2739.1,0.029168]
[1646832085662,0.9127702,2739.4,2739.1,0.02421529]
[1646832086262,0.3,2739.3,2739.1,0.02421529]
[1646832086665,0.16145588,2739.3,2739.1,0.02421529]
[1646832089715,2.9206,2739.7,2739.2,0.445]
[1646832089716,0.9125315,2739.7,2739.2,0.445]
[1646832089922,1.248,2739.9,2739.4,0.029168]
[1646832090117,10.1351,2740.1,2739.4,0.029168]
[1646832090118,2.7918,2740.1,2739.8,0.029168]
[1646832090318,0.00109664,2740.6,2739.8,0.029168]
[1646832090519,1.19649664,2740.7,2740.1,0.029168]
[1646832090723,1.1954,2740.7,2740.2,0.445]
[1646832090920,0.9122018,2740.7,2740.5,1.22679071]
[1646832091117,0.00362034,2740.8,2740.6,0.445]
[1646832091118,1.82809134,2740.8,2740.6,0.445]
[1646832091519,1.82809134,2740.8,2740.1,0.029168]
[1646832091520,2.19369134,2740.8,2740.1,0.029168]
[1646832091721,2.190071,2740.8,2739.9,0.445]
[1646832092118,1.82499,2740.7,2739.9,0.44296718]
[1646832092323,1.82499,2740.7,2740.0,0.98087189]
[1646832092324,3.649888,2740.7,2740.0,0.98087189]
[1646832093159,4.249888,2740.7,2740.0,0.98087189]
[1646832093364,2.424898,2740.7,2740.0,0.98087189]
[1646832093559,2.424898,2740.7,2740.1,0.027251]
[1646832096908,2.424898,2740.7,2740.5,0.029168]
[1646832097110,2.424898,2740.7,2740.3,0.024501]
[1646832097311,2.424898,2740.7,2740.1,0.027251]
[1646832097912,2.424898,2740.7,2740.1,0.025267]
[1646832099415,2.424898,2740.7,2740.2,0.029168]
[1646832099613,2.424898,2740.7,2740.1,0.025267]
[1646832099913,2.424898,2740.7,2739.7,0.469501]
[1646832100159,2.424898,2740.7,2740.2,0.029168]
[1646832100355,5.924898,2740.7,2740.1,0.024501]
[1646832100555,5.924898,2740.7,2740.0,0.029168]
[1646832100857,3.424898,2740.7,2740.0,0.029168]
[1646832101060,3.424898,2740.7,2740.1,1.06777715]
[1646832101259,0.6,2740.7,2740.6,0.029168]
[1646832101461,1.5122341,2740.7,2740.6,0.029168]
[1646832101659,1.2122341,2740.7,2740.6,0.029168]
[1646832101859,1.5122341,2740.7,2740.6,0.029168]
[1646832102260,1.5122341,2740.7,2740.4,0.029168]
[1646832102462,1.5122341,2740.7,2740.2,0.029168]
[1646832103062,1.5122341,2740.7,2740.4,0.029168]
[1646832103266,5.0122341,2740.7,2740.0,3.7]
[1646832103463,5.9247141,2740.7,2740.0,3.7]
[1646832103667,6.9247141,2740.7,2740.0,3.7]
[1646832104210,7.2903141,2740.7,2740.0,3.7]
[1646832105007,7.2903141,2740.7,2740.1,0.029168]
[1646832105207,6.3778341,2740.7,2740.1,0.029168]
[1646832105607,6.3778341,2740.7,2740.0,3.7]
[1646832106109,1.5122341,2740.7,2740.0,3.7]
[1646832106316,1.5122341,2740.7,2740.4,1.20391919]
[1646832106513,1.5122341,2740.7,2740.4,1.20135519]
[1646832107313,1.2122341,2740.7,2740.4,1.20135519]
[1646832107568,1.2122341,2740.7,2740.2,0.029168]
[1646832107766,1.2122341,2740.7,2740.4,0.026045]
[1646832110273,1.5122341,2740.7,2740.4,0.026045]
[1646832110476,1.5122341,2740.7,2740.2,0.029168]
[1646832110676,5.3778341,2740.7,2740.0,3.7]
[1646832110876,6.7706341,2740.7,2740.0,3.724501]
[1646832111074,6.7706341,2740.7,2740.1,0.029168]
[1646832111075,7.7706341,2740.7,2740.1,0.029168]
[1646832111318,7.7706341,2740.7,2740.2,0.029168]
[1646832112513,7.3790341,2740.7,2740.2,0.029168]
[1646832112914,3.8790341,2740.7,2740.1,0.029168]
[1646832113113,1.5122341,2740.7,2740.5,0.029168]
[1646832113314,1.5122341,2740.7,2740.2,0.024501]
[1646832113714,1.5122341,2740.7,2740.1,0.029168]
[1646832114020,1.5122341,2740.7,2740.3,1.08500046]
[1646832114417,1.51094275,2740.7,2740.3,1.08500046]
[1646832114614,1.51094275,2740.7,2740.3,0.029168]
[1646832114815,1.51094275,2740.7,2740.3,0.02718344]
[1646832116054,1.51094275,2740.7,2740.4,1.16894041]
[1646832116660,1.51094275,2740.7,2740.4,1.19567841]
[1646832118260,1.21094275,2740.7,2740.4,0.026738]
[1646832118910,1.51094275,2740.7,2740.3,0.02718344]
[1646832119615,6.5,2740.5,2739.5,5.09214325]
[1646832119814,3.0,2740.2,2739.3,2.0]
[1646832120013,3.0,2740.2,2738.9,0.3652]
[1646832120014,0.01246023,2739.9,2738.9,0.3652]
[1646832120310,0.01246023,2739.9,2739.0,7.3009]
[1646832120311,11.179168,2739.8,2739.0,7.3009]
[1646832120510,15.0156,2739.7,2739.0,7.3009]
[1646832120716,15.0156,2739.7,2739.0,8.18929927]
[1646832120717,15.3156,2739.7,2739.0,8.18929927]
[1646832120911,0.9128794,2739.6,2739.0,8.18929927]
[1646832121314,0.3,2739.5,2739.0,8.18929927]
[1646832122757,0.3,2739.5,2739.0,9.08752749]
[1646832122955,0.3,2739.5,2739.1,0.89822822]
[1646832124055,0.9128794,2739.6,2739.2,0.89822822]
[1646832124260,0.9128794,2739.6,2739.3,0.89822822]
[1646832124661,0.9128794,2739.6,2739.2,0.89822822]
[1646832124856,0.9128794,2739.6,2739.1,0.89822822]
[1646832125258,4.4128794,2739.6,2739.0,12.78752749]
[1646832125459,0.3,2739.5,2739.0,12.78752749]
[1646832125659,0.3,2739.5,2739.0,11.0009]
[1646832125660,0.6656,2739.5,2739.0,11.0009]
[1646832126328,0.3,2739.5,2739.0,11.89912822]
[1646832127625,0.3,2739.5,2739.2,0.94907946]
[1646832129825,0.3,2739.5,2739.0,11.0009]
[1646832130757,0.3,2739.5,2739.1,1.22392984]
[1646832132464,0.3,2739.5,2739.0,11.0009]
[1646832134204,0.3,2739.5,2739.1,1.02003982]
[1646832134407,0.9128794,2739.6,2739.1,1.02003982]
[1646832135909,0.3,2739.5,2739.1,1.02003982]
[1646832136717,7.1851,2740.1,2739.2,0.445]
[1646832136915,0.00109664,2740.4,2739.4,0.91232]
[1646832137119,7.63109664,2740.6,2739.5,0.445]
[1646832137314,7.63,2740.6,2740.4,0.95460917]
[1646832137560,0.9122797,2740.9,2740.4,0.95460917]
[1646832137763,0.00353164,2740.8,2740.4,0.95460917]
[1646832137960,3.50353164,2740.8,2740.4,0.95460917]
[1646832138161,0.00353164,2740.8,2740.4,0.95460917]
[1646832138762,1.2122797,2740.9,2740.4,0.95460917]
[1646832138964,0.00357198,2740.8,2740.4,0.95460917]
[1646832139770,0.9122797,2740.9,2740.4,0.95460917]
[1646832140167,0.00357293,2740.8,2740.4,0.95460917]
[1646832141168,0.9122797,2740.9,2740.4,0.95460917]
[1646832141418,0.00357293,2740.8,2740.4,1.86675917]
[1646832142217,1.2122797,2740.9,2740.4,1.86675917]
[1646832142520,1.2122797,2740.9,2740.4,0.95460917]
[1646832142521,0.00357293,2740.8,2740.4,0.95460917]
[1646832142717,0.00357293,2740.8,2740.4,4.65460917]
[1646832143416,1.2122797,2740.9,2740.4,4.65460917]
[1646832143618,0.0035715,2740.8,2740.4,4.65460917]
[1646832144619,1.2122797,2740.9,2740.4,4.65460917]
[1646832145057,0.0035715,2740.8,2740.4,4.65460917]
[1646832145857,1.2122797,2740.9,2740.4,4.65460917]
[1646832146059,0.0035715,2740.8,2740.4,4.65460917]
[1646832146960,1.2122797,2740.9,2740.4,4.65460917]
[1646832147358,0.0035716,2740.8,2740.4,4.65460917]
[1646832148159,1.2122797,2740.9,2740.4,4.65460917]
[1646832148558,0.0035716,2740.8,2740.4,4.65460917]
[1646832148806,0.0035716,2740.8,2740.4,3.7]
[1646832149009,0.0298006,2740.8,2740.4,3.7]
[1646832149408,0.026229,2740.8,2740.4,3.7]
[1646832149608,0.02959122,2740.8,2740.4,3.7]
[1646832150010,0.94200122,2740.8,2740.4,3.7]
[1646832150216,0.02959122,2740.8,2740.4,3.7]
[1646832150609,0.02959122,2740.8,2740.4,3.6837]
[1646832150610,0.026229,2740.8,2740.4,3.6837]
[1646832150911,0.02959121,2740.8,2740.4,3.67775654]
[1646832151910,0.026229,2740.8,2740.4,3.67775654]
[1646832152110,0.02959121,2740.8,2740.4,3.67775654]
[1646832152763,0.00336221,2740.8,2740.4,4.58989654]
[1646832153157,1.2122797,2740.9,2740.4,4.58989654]
[1646832153358,0.00336221,2740.8,2740.4,4.58989654]
[1646832154360,1.2122797,2740.9,2740.8,0.90340551]
[1646832157207,4.7122797,2740.9,2740.8,0.90340551]
[1646832158611,4.7122797,2740.9,2740.4,3.67775654]
[1646832159313,0.00338115,2740.8,2740.4,3.67775654]
[1646832159716,0.029168,2740.7,2740.4,3.67775654]
[1646832159912,3.5,2740.6,2740.4,3.67775654]
[1646832160157,3.5,2740.5,2740.4,3.67775654]
[1646832160358,3.8,2740.5,2740.4,3.67775654]
[1646832160560,0.3,2740.5,2740.4,3.67775654]
[1646832162762,3.8,2740.5,2740.4,3.67775654]
[1646832162963,14.95,2740.5,2740.4,3.67775654]
[1646832163170,14.95,2740.5,2740.4,3.38685654]
[1646832163171,14.977143,2740.5,2740.4,3.38685654]
[1646832163362,15.977143,2740.5,2740.4,3.38685654]
[1646832163563,5.5,2740.4,2740.0,0.3]
[1646832163813,4.4125999,2740.2,2739.5,2.0]
[1646832164111,3.5,2740.1,2739.5,3.22117029]
[1646832164310,5.0417679,2740.2,2739.5,1.22117029]
[1646832165212,4.7417679,2740.2,2739.5,1.22117029]
[1646832165820,4.7417679,2740.2,2740.0,0.95407159]
[1646832168060,3.8,2740.2,2740.0,0.95407159]
[1646832168860,3.8,2740.2,2740.0,2.77844159]
[1646832173108,3.8,2740.2,2740.0,4.27844159]
[1646832173510,3.8,2740.2,2740.0,2.45407159]
[1646832175252,4.7123342,2740.2,2740.0,2.45407159]
[1646832176656,4.7123342,2740.2,2740.0,1.5]